fUSD/lending_fUSD_20260115
["ID","MTS","AMOUNT","RATE_DAILY","PERIOD"]
[402008806,1768456318997,-500.0,0.00042465,30]
[402008807,1768456319006,-603.55774363,0.00042465,30]
[402008808,1768456319016,-680.73,0.00042465,30]
[402008809,1768456319025,-500.0,0.00042465,30]
[402008810,1768456319035,-596.93,0.00042465,30]
[402008811,1768456319044,-500.0,0.00042465,30]
[402008812,1768456319053,-832.77,0.00042465,30]
[402008813,1768456319062,-1390.2,0.00042465,30]
[402008814,1768456319071,-500.0,0.00042465,30]
[402008815,1768456319080,-2147.72,0.00042465,30]
[402008816,1768456319089,-610.89,0.00042465,30]
[402008817,1768456319099,-500.0,0.00042465,30]
[402008818,1768456319108,-500.0,0.00042465,30]
[402008819,1768456319117,-460.35936537,0.00042465,30]
[402008820,1768456319322,-500.0,0.00042465,30]
[402008821,1768456319335,-540.48,0.00042465,30]
[402008822,1768456319345,-500.0,0.00042465,30]
[402008823,1768456319354,-500.0,0.00042465,30]
[402008824,1768456319364,-1604.52,0.00042465,30]
[402008825,1768456319373,-500.0,0.00042465,30]
[402008826,1768456319382,-631.05,0.00042465,30]
[402008827,1768456319392,-563.92,0.00042465,30]
[402008828,1768456319402,-662.82,0.00042465,30]
[402008829,1768456319412,-1751.71,0.00042465,30]
[402008830,1768456319421,-1774.48,0.00042465,30]
[402008831,1768456319431,-693.5,0.00042465,30]
[402008832,1768456319441,-536.84509092,0.00042465,30]
[402008833,1768456319450,-500.0,0.00042465,30]
[402008834,1768456319460,-500.0,0.00042465,30]
[402008835,1768456319470,-500.0,0.00042465,30]
[402008836,1768456319480,-668.97,0.00042465,30]
[402008837,1768456319490,-586.79,0.00042465,30]
[402008838,1768456319500,-500.0,0.00042465,30]
[402008839,1768456319509,-1425.42,0.00042465,30]
[402008840,1768456319518,-500.0,0.00042465,30]
[402008841,1768456319528,-768.68,0.00042465,30]
[402008842,1768456319537,-500.0,0.00042465,30]
[402008843,1768456319547,-500.0,0.00042465,30]
[402008844,1768456319556,-500.0,0.00042465,30]
[402008845,1768456319566,-2253.59,0.00042465,30]
[402008846,1768456319575,-500.0,0.00042465,30]
[402008847,1768456319584,-1332.22,0.00042465,30]
[402008848,1768456319594,-2288.89,0.00042465,30]
[402008849,1768456319604,-605.16,0.00042465,30]
[402008850,1768456319613,-795.95,0.00042465,30]
[402008851,1768456319623,-500.0,0.00042465,30]
[402008852,1768456319633,-1059.96,0.00042465,30]
[402008853,1768456319643,-793.98,0.00042465,30]
[402008854,1768456319652,-2002.1,0.00042465,30]
[402008855,1768456319662,-2162.23,0.00042465,30]
[402008856,1768456319671,-525.36796573,0.00042465,30]
[402008857,1768456319681,-504.91,0.00042465,30]
[402008858,1768456319690,-768.39,0.00042465,30]
[402008859,1768456319699,-697.86,0.00042465,30]
[402008860,1768456319709,-563.45,0.00042465,30]
[402008861,1768456319718,-1132.27,0.00042465,30]
[402008862,1768456319727,-500.0,0.00042465,30]
[402008863,1768456319736,-1030.03,0.00042465,30]
[402008864,1768456319745,-2945.98,0.00042465,30]
[402008865,1768456319755,-500.0,0.00042465,30]
[402008866,1768456319764,-500.0,0.00042465,30]
[402008867,1768456319774,-586.52,0.00042465,30]
[402008868,1768456319784,-1757.27,0.00042465,30]
[402008869,1768456319794,-500.0,0.00042465,30]
[402008870,1768456319804,-1779.76,0.00042465,30]
[402008871,1768456319813,-500.0,0.00042465,30]
[402008872,1768456319823,-516.79,0.00042465,30]
[402008873,1768456319832,-571.51,0.00042465,30]
[402008874,1768456319841,-500.0,0.00042465,30]
[402008875,1768456319850,-500.0,0.00042465,30]
[402008876,1768456319859,-500.0,0.00042465,30]
[402008877,1768456319869,-1194.56,0.00042465,30]
[402008878,1768456319879,-1341.32,0.00042465,30]
[402008879,1768456319888,-1513.91,0.00042465,30]
[402008880,1768456319898,-592.79,0.00042465,30]
[402008881,1768456319909,-500.0,0.00042465,30]
[402008882,1768456319919,-1086.44,0.00042465,30]
[402008883,1768456319928,-500.0,0.00042465,30]
[402008884,1768456319938,-500.0,0.00042465,30]
[402008885,1768456319947,-500.0,0.00042465,30]
[402008886,1768456319956,-1972.8,0.00042465,30]
[402008887,1768456319966,-500.0,0.00042465,30]
[402008888,1768456319975,-2409.54,0.00042465,30]
[402008889,1768456319985,-351.25592186,0.00042465,30]
[402008890,1768456319994,-500.0,0.00042465,30]
[402008891,1768456320003,-1211.6,0.00042465,30]
[402008892,1768456320013,-500.0,0.00042465,30]
[402008893,1768456320022,-500.0,0.00042465,30]
[402008894,1768456320031,-545.73,0.00042465,30]
[402008895,1768456320041,-958.37,0.00042465,30]
[402008896,1768456320051,-500.0,0.00042465,30]
[402008897,1768456320060,-786.37,0.00042465,30]
[402008898,1768456320069,-500.0,0.00042465,30]
[402008899,1768456320079,-542.37,0.00042465,30]
[402008900,1768456320088,-523.07,0.00042465,30]
[402008901,1768456320097,-664.96,0.00042465,30]
[402008902,1768456320107,-500.0,0.00042465,30]
[402008903,1768456320117,-1372.95,0.00042465,30]
[402008904,1768456320126,-245.38989624,0.00042465,30]
[402008905,1768456320135,-812.51,0.00042465,30]
[402008906,1768456320145,-1455.87,0.00042465,30]
[402008907,1768456320156,-941.8,0.00042465,30]
[402008908,1768456320168,-500.0,0.00042465,30]
[402008909,1768456320178,-2662.37,0.00042465,30]
[402008910,1768456320187,-500.0,0.00042465,30]
[402008911,1768456320197,-973.33,0.00042465,30]
[402008912,1768456320207,-500.0,0.00042465,30]
[402008913,1768456320216,-1289.05,0.00042465,30]
[402008914,1768456320226,-699.2,0.00042465,30]
[402008915,1768456320236,-685.1,0.00042465,30]
[402008916,1768456320246,-1487.63,0.00042465,30]
[402008917,1768456320255,-500.0,0.00042465,30]
[402008918,1768456320264,-500.0,0.00042465,30]
[402008919,1768456320274,-500.0,0.00042465,30]
[402008920,1768456320283,-722.63,0.00042465,30]
[402008921,1768456320293,-718.84,0.00042465,30]
[402008922,1768456320304,-500.0,0.00042465,30]
[402008923,1768456320313,-1374.44,0.00042465,30]
[402008924,1768456320323,-1333.33,0.00042465,30]
[402008925,1768456320333,-500.0,0.00042465,30]
[402008926,1768456320343,-500.0,0.00042465,30]
[402008927,1768456320352,-500.0,0.00042465,30]
[402008928,1768456320361,-880.97,0.00042465,30]
[402008929,1768456320370,-500.0,0.00042465,30]
[402008930,1768456320380,-1474.36,0.00042465,30]
[402008931,1768456320389,-1370.45,0.00042465,30]
[402008932,1768456320398,-500.0,0.00042465,30]
[402008933,1768456320409,-513.2871266,0.00042465,30]
[402008934,1768456320419,-525.08,0.00042465,30]
[402008935,1768456320428,-500.0,0.00042465,30]
[402008936,1768456320438,-532.31,0.00042465,30]
[402008937,1768456320448,-1652.78,0.00042465,30]
[402008938,1768456320457,-500.0,0.00042465,30]
[402008939,1768456320467,-500.0,0.00042465,30]
[402008940,1768456320477,-500.0,0.00042465,30]
[402008941,1768456320486,-500.0,0.00042465,30]
[402008942,1768456320496,-764.83,0.00042465,30]
[402008943,1768456320505,-938.14,0.00042465,30]
[402008944,1768456320514,-1414.71,0.00042465,30]
[402008945,1768456320523,-2387.71,0.00042465,30]
[402008946,1768456320533,-546.58,0.00042465,30]
[402008947,1768456320542,-500.0,0.00042465,30]
[402008948,1768456320552,-500.0,0.00042465,30]
[402008949,1768456320561,-500.0,0.00042465,30]
[402008950,1768456320571,-725.6,0.00042465,30]
[402008951,1768456320580,-461.69889652,0.00042465,30]
[402008952,1768456320589,-500.0,0.00042465,30]
[402008953,1768456320598,-500.0,0.00042465,30]
[402008954,1768456320608,-500.0,0.00042465,30]
[402008955,1768456320618,-500.0,0.00042465,30]
[402008956,1768456320627,-500.0,0.00042465,30]
[402008957,1768456320637,-500.0,0.00042465,30]
[402008958,1768456320646,-507.5,0.00042465,30]
[402008959,1768456320657,-852.0,0.00042465,30]
[402008960,1768456320666,-785.39,0.00042465,30]
[402008961,1768456320675,-537.26214692,0.00042465,30]
[402008962,1768456320685,-808.51,0.00042465,30]
[402008963,1768456320694,-500.0,0.00042465,30]
[402008964,1768456320703,-1558.42,0.00042465,30]
[402008965,1768456320712,-939.62,0.00042465,30]
[402008966,1768456320721,-1133.45,0.00042465,30]
[402008967,1768456320730,-951.35,0.00042465,30]
[402008968,1768456320739,-1235.87,0.00042465,30]
[402008969,1768456320748,-500.0,0.00042465,30]
[402008970,1768456320758,-500.0,0.00042465,30]
[402008971,1768456320767,-500.0,0.00042465,30]
[402008972,1768456320777,-465.79123866,0.00042465,30]
[402008973,1768456320786,-1344.98,0.00042465,30]
[402008974,1768456320796,-507.71,0.00042465,30]
[402008975,1768456320806,-1917.34,0.00042465,30]
[402008976,1768456320816,-929.04,0.00042465,30]
[402008977,1768456320825,-567.59,0.00042465,30]
[402008978,1768456320835,-500.0,0.00042465,30]
[402008979,1768456320844,-500.0,0.00042465,30]
[402008980,1768456320853,-1078.65,0.00042465,30]
[402008981,1768456320863,-939.8,0.00042465,30]
[402008982,1768456320872,-2051.49,0.00042465,30]
[402008983,1768456320882,-660.83,0.00042465,30]
[402008984,1768456320891,-2161.17,0.00042465,30]
[402008985,1768456320900,-1316.39,0.00042465,30]
[402008986,1768456320910,-2201.93,0.00042465,30]
[402008987,1768456320919,-584.07,0.00042465,30]
[402008988,1768456320928,-531.28,0.00042465,30]
[402008989,1768456320937,-725.19,0.00042465,30]
[402008990,1768456320945,-1119.17,0.00042465,30]
[402008991,1768456320954,-778.77,0.00042465,30]
[402008992,1768456320964,-500.0,0.00042465,30]
[402008993,1768456320973,-500.0,0.00042465,30]
[402008994,1768456320982,-1259.48,0.00042465,30]
[402008995,1768456320991,-2067.31,0.00042465,30]
[402008996,1768456321000,-1407.11,0.00042465,30]
[402008997,1768456321009,-1797.11,0.00042465,30]
[402008998,1768456321019,-500.0,0.00042465,30]
[402008999,1768456321028,-500.0,0.00042465,30]
[402009000,1768456321037,-500.0,0.00042465,30]
[402009001,1768456321047,-500.0,0.00042465,30]
[402009002,1768456321056,-1676.02,0.00042465,30]
[402009003,1768456321069,-500.0,0.00042465,30]
[402009004,1768456321078,-2411.51,0.00042465,30]
[402009005,1768456321087,-500.0,0.00042465,30]
[402009006,1768456321096,-677.02,0.00042465,30]
[402009007,1768456321105,-1265.91,0.00042465,30]
[402009008,1768456321114,-810.25,0.00042465,30]
[402009009,1768456321123,-500.0,0.00042465,30]
[402009010,1768456321133,-1957.85,0.00042465,30]
[402009011,1768456321142,-500.0,0.00042465,30]
[402009012,1768456321151,-1210.89,0.00042465,30]
[402009013,1768456321162,-525.59,0.00042465,30]
[402009014,1768456321175,-500.0,0.00042465,30]
[402009015,1768456321184,-506.93,0.00042465,30]
[402009016,1768456321193,-2083.77,0.00042465,30]
[402009017,1768456321202,-925.59,0.00042465,30]
[402009018,1768456321214,-500.0,0.00042465,30]
[402009019,1768456321223,-500.0,0.00042465,30]
[402009020,1768456321232,-612.19,0.00042465,30]
[402009021,1768456321243,-500.0,0.00042465,30]
[402009022,1768456321252,-500.0,0.00042465,30]
[402009023,1768456321262,-1081.46,0.00042465,30]
[402009024,1768456321272,-500.0,0.00042465,30]
[402009025,1768456321281,-500.0,0.00042465,30]
[402009026,1768456321290,-570.86,0.00042465,30]
[402009027,1768456321299,-500.0,0.00042465,30]
[402009028,1768456321309,-580.23,0.00042465,30]
[402009029,1768456321318,-500.0,0.00042465,30]
[402009030,1768456321327,-500.0,0.00042465,30]
[402009031,1768456321336,-1307.38,0.00042465,30]
[402009032,1768456321346,-500.0,0.00042465,30]
[402009033,1768456321355,-1903.76,0.00042465,30]
[402009034,1768456321364,-1509.71,0.00042465,30]
[402009035,1768456321373,-693.74,0.00042465,30]
[402009036,1768456321382,-1515.33,0.00042465,30]
[402009037,1768456321390,-500.0,0.00042465,30]
[402009038,1768456321400,-517.89,0.00042465,30]
[402009039,1768456321410,-500.0,0.00042465,30]
[402009040,1768456321420,-687.53,0.00042465,30]
[402009041,1768456321429,-1281.85,0.00042465,30]
[402009042,1768456321439,-502.99694221,0.00042465,30]
[402009043,1768456321449,-1330.12,0.00042465,30]
[402009044,1768456321458,-1408.68,0.00042465,30]
[402009045,1768456321468,-2150.32,0.00042465,30]
[402009046,1768456321478,-577.39,0.00042465,30]
[402009047,1768456321487,-668.11,0.00042465,30]
[402009048,1768456321496,-500.0,0.00042465,30]
[402009049,1768456321506,-1381.77,0.00042465,30]
[402009050,1768456321515,-941.25,0.00042465,30]
[402009051,1768456321524,-500.0,0.00042465,30]
[402009052,1768456321534,-500.0,0.00042465,30]
[402009053,1768456321543,-618.87,0.00042465,30]
[402009054,1768456321553,-500.0,0.00042465,30]
[402009055,1768456321562,-500.0,0.00042465,30]
[402009056,1768456321572,-761.13,0.00042465,30]
[402009057,1768456321581,-500.0,0.00042465,30]
[402009058,1768456321590,-500.0,0.00042465,30]
[402009059,1768456321600,-1981.46,0.00042465,30]
[402009060,1768456321609,-500.0,0.00042465,30]
[402009061,1768456321618,-1553.39,0.00042465,30]
[402009062,1768456321627,-500.0,0.00042465,30]
[402009063,1768456321637,-3119.56,0.00042465,30]
[402009064,1768456321647,-500.0,0.00042465,30]
[402009065,1768456321656,-500.0,0.00042465,30]
[402009066,1768456321665,-500.0,0.00042465,30]
[402009067,1768456321674,-500.0,0.00042465,30]
[402009068,1768456321683,-587.24,0.00042465,30]
[402009069,1768456321692,-500.0,0.00042465,30]
[402009070,1768456321701,-500.0,0.00042465,30]
[402009071,1768456321710,-1640.35,0.00042465,30]
[402009072,1768456321719,-635.35,0.00042465,30]
[402009073,1768456321728,-500.0,0.00042465,30]
[402009074,1768456321737,-947.6,0.00042465,30]
[402009075,1768456321747,-834.05,0.00042465,30]
[402009076,1768456321756,-500.0,0.00042465,30]
[402009077,1768456321765,-1160.51,0.00042465,30]
[402009078,1768456321774,-500.0,0.00042465,30]
[402009079,1768456321783,-889.08,0.00042465,30]
[402009080,1768456321792,-866.78,0.00042465,30]
[402009081,1768456321801,-500.0,0.00042465,30]
[402009082,1768456321811,-592.22,0.00042465,30]
[402009083,1768456321819,-503.03002067,0.00042465,30]
[402009084,1768456321829,-1417.17,0.00042465,30]
[402009085,1768456321838,-973.23,0.00042465,30]
[402009086,1768456321847,-898.7,0.00042465,30]
[402009087,1768456321857,-500.0,0.00042465,30]
[402009088,1768456321866,-1786.57,0.00042465,30]
[402009089,1768456321876,-996.95,0.00042465,30]
[402009090,1768456321885,-500.0,0.00042465,30]
[402009091,1768456321894,-500.0,0.00042465,30]
[402009092,1768456321904,-1938.87,0.00042465,30]
[402009093,1768456321913,-500.0,0.00042465,30]
[402009094,1768456321922,-500.0,0.00042465,30]
[402009095,1768456321931,-500.0,0.00042465,30]
[402009096,1768456321940,-500.0,0.00042465,30]
[402009097,1768456321950,-983.72,0.00042465,30]
[402009098,1768456321960,-500.0,0.00042465,30]
[402009099,1768456321969,-1322.04,0.00042465,30]
[402009100,1768456321979,-500.0,0.00042465,30]
[402009101,1768456321988,-981.72,0.00042465,30]
[402009102,1768456321997,-1114.48,0.00042465,30]
[402009103,1768456322006,-500.0,0.00042465,30]
[402009104,1768456322016,-500.0,0.00042465,30]
[402009105,1768456322025,-1290.94,0.00042465,30]
[402009106,1768456322035,-923.78,0.00042465,30]
[402009107,1768456322044,-902.39,0.00042465,30]
[402009108,1768456322053,-1298.08,0.00042465,30]
[402009109,1768456322063,-765.65,0.00042465,30]
[402009110,1768456322072,-500.0,0.00042465,30]
[402009111,1768456322081,-550.96,0.00042465,30]
[402009112,1768456322091,-1712.6,0.00042465,30]
[402009113,1768456322100,-1663.22,0.00042465,30]
[402009114,1768456322109,-500.0,0.00042465,30]
[402009115,1768456322119,-500.0,0.00042465,30]
[402009116,1768456322321,-567.83,0.00042465,30]
[402009117,1768456322331,-728.49,0.00042465,30]
[402009118,1768456322341,-500.0,0.00042465,30]
[402009119,1768456322350,-836.88,0.00042465,30]
[402009120,1768456322359,-1472.36,0.00042465,30]
[402009121,1768456322368,-500.0,0.00042465,30]
[402009122,1768456322378,-500.0,0.00042465,30]
[402009123,1768456322387,-500.0,0.00042465,30]
[402009124,1768456322396,-1752.48,0.00042465,30]
[402009125,1768456322406,-1282.29,0.00042465,30]
[402009126,1768456322415,-500.0,0.00042465,30]
[402009127,1768456322425,-515.93,0.00042465,30]
[402009128,1768456322435,-1625.58,0.00042465,30]
[402009129,1768456322445,-500.0,0.00042465,30]
[402009130,1768456322454,-214.69076902,0.00042465,30]
[402009131,1768456322464,-1031.64,0.00042465,30]
[402009132,1768456322473,-1546.57,0.00042465,30]
[402009133,1768456322483,-500.0,0.00042465,30]
[402009134,1768456322493,-500.0,0.00042465,30]
[402009135,1768456322503,-898.37,0.00042465,30]
[402009136,1768456322513,-731.92,0.00042465,30]
[402009137,1768456322523,-611.18,0.00042465,30]
[402009138,1768456322533,-500.0,0.00042465,30]
[402009139,1768456322542,-500.0,0.00042465,30]
[402009140,1768456322552,-500.0,0.00042465,30]
[402009141,1768456322562,-830.99,0.00042465,30]
[402009142,1768456322571,-500.0,0.00042465,30]
[402009143,1768456322581,-500.0,0.00042465,30]
[402009144,1768456322591,-1327.4,0.00042465,30]
[402009145,1768456322601,-1352.98,0.00042465,30]
[402009146,1768456322611,-1623.62,0.00042465,30]
[402009147,1768456322620,-500.0,0.00042465,30]
[402009148,1768456322630,-500.0,0.00042465,30]
[402009149,1768456322640,-500.0,0.00042465,30]
[402009150,1768456322649,-1474.95,0.00042465,30]
[402009151,1768456322659,-1126.83,0.00042465,30]
[402009152,1768456322669,-838.95,0.00042465,30]
[402009153,1768456322678,-625.63,0.00042465,30]
[402009154,1768456322687,-3417.33,0.00042465,30]
[402009155,1768456322697,-737.76,0.00042465,30]
[402009156,1768456322707,-500.0,0.00042465,30]
[402009157,1768456322716,-500.0,0.00042465,30]
[402009158,1768456322725,-1849.62,0.00042465,30]
[402009159,1768456322735,-910.66,0.00042465,30]
[402009160,1768456322743,-500.0,0.00042465,30]
[402009161,1768456322752,-1081.92,0.00042465,30]
[402009162,1768456322761,-879.87,0.00042465,30]
[402009163,1768456322771,-500.0,0.00042465,30]
[402009164,1768456322779,-500.0,0.00042465,30]
[402009165,1768456322789,-500.0,0.00042465,30]
[402009166,1768456322798,-684.98,0.00042465,30]
[402009167,1768456322807,-500.0,0.00042465,30]
[402009168,1768456322817,-1058.06,0.00042465,30]
[402009169,1768456322826,-1873.12,0.00042465,30]
[402009170,1768456322835,-500.0,0.00042465,30]
[402009171,1768456322845,-500.0,0.00042465,30]
[402009172,1768456322855,-500.0,0.00042465,30]
[402009173,1768456322864,-1840.97,0.00042465,30]
[402009174,1768456322874,-500.0,0.00042465,30]
[402009175,1768456322883,-500.0,0.00042465,30]
[402009176,1768456322893,-1107.51,0.00042465,30]
[402009177,1768456322902,-500.0,0.00042465,30]
[402009178,1768456322911,-500.0,0.00042465,30]
[402009179,1768456322920,-1052.64,0.00042465,30]
[402009180,1768456322930,-752.36,0.00042465,30]
[402009181,1768456322939,-500.0,0.00042465,30]
[402009182,1768456322949,-500.0,0.00042465,30]
[402009183,1768456322958,-500.0,0.00042465,30]
[402009184,1768456322967,-1837.54,0.00042465,30]
[402009185,1768456322975,-500.0,0.00042465,30]
[402009186,1768456322985,-1368.1,0.00042465,30]
[402009187,1768456322994,-500.0,0.00042465,30]
[402009188,1768456323004,-1274.16,0.00042465,30]
[402009189,1768456323013,-658.15,0.00042465,30]
[402009190,1768456323023,-602.98,0.00042465,30]
[402009191,1768456323032,-765.62,0.00042465,30]
[402009192,1768456323042,-579.51,0.00042465,30]
[402009193,1768456323051,-858.81,0.00042465,30]
[402009194,1768456323061,-1169.99,0.00042465,30]
[402009195,1768456323070,-2319.02,0.00042465,30]
[402009196,1768456323079,-1075.89,0.00042465,30]
[402009197,1768456323088,-500.0,0.00042465,30]
[402009198,1768456323098,-500.0,0.00042465,30]
[402009199,1768456323108,-500.78,0.00042465,30]
[402009200,1768456323117,-300.0,0.00042465,2]
[402009201,1768456323127,-1035.17,0.00042465,30]
[402009202,1768456323137,-621.4,0.00042465,30]
[402009203,1768456323146,-788.9,0.00042465,30]
[402009204,1768456323156,-500.0,0.00042465,30]
[402009205,1768456323167,-870.22,0.00042465,30]
[402009206,1768456323177,-990.93,0.00042465,30]
[402009207,1768456323187,-1632.51,0.00042465,30]
[402009208,1768456323196,-500.0,0.00042465,30]
[402009209,1768456323206,-1930.57,0.00042465,30]
[402009210,1768456323217,-1583.0,0.00042465,30]
[402009211,1768456323227,-983.91,0.00042465,30]
[402009212,1768456323237,-500.0,0.00042465,30]
[402009213,1768456323247,-531.58,0.00042465,30]
[402009214,1768456323256,-500.0,0.00042465,30]
[402009215,1768456323267,-1943.14,0.00042465,30]
[402009216,1768456323277,-500.0,0.00042465,16]
[402009217,1768456323286,-500.0,0.00042465,30]
[402009218,1768456323296,-500.0,0.00042465,30]
[402009219,1768456323307,-862.08,0.00042465,30]
[402009220,1768456323316,-624.03,0.00042465,30]
[402009221,1768456323326,-500.0,0.00042465,30]
[402009222,1768456323335,-1404.84,0.00042465,30]
[402009223,1768456323344,-500.0,0.00042465,30]
[402009224,1768456323354,-1449.27,0.00042465,30]
[402009225,1768456323363,-2295.17,0.00042465,30]
[402009226,1768456323372,-500.0,0.00042465,30]
[402009227,1768456323382,-595.77,0.00042465,30]
[402009228,1768456323391,-500.0,0.00042465,30]
[402009229,1768456323400,-732.39,0.00042465,30]
[402009230,1768456323410,-500.0,0.00042465,30]
[402009231,1768456323420,-1203.46,0.00042465,30]
[402009232,1768456323430,-1317.45,0.00042465,30]
[402009233,1768456323440,-500.0,0.00042465,30]
[402009234,1768456323449,-1797.52,0.00042465,30]
[402009235,1768456323458,-3003.5,0.00042465,30]
[402009236,1768456323467,-500.0,0.00042465,30]
[402009237,1768456323476,-500.0,0.00042465,30]
[402009238,1768456323485,-500.0,0.00042465,30]
[402009239,1768456323495,-500.0,0.00042465,30]
[402009240,1768456323504,-500.0,0.00042465,30]
[402009241,1768456323514,-500.0,0.00042465,30]
[402009242,1768456323523,-1488.87,0.00042465,30]
[402009243,1768456323533,-598.94,0.00042465,30]
[402009244,1768456323542,-807.65,0.00042465,30]
[402009245,1768456323551,-500.0,0.00042465,30]
[402009246,1768456323561,-500.0,0.00042465,30]
[402009247,1768456323570,-500.0,0.00042465,30]
[402009248,1768456323580,-500.0,0.00042465,30]
[402009249,1768456323594,-500.0,0.00042465,30]
[402009250,1768456323614,-500.0,0.00042465,30]
[402009251,1768456323634,-500.0,0.00042465,30]
[402009252,1768456323653,-1231.59,0.00042465,30]
[402009253,1768456323671,-500.0,0.00042465,30]
[402009254,1768456323687,-1553.63,0.00042465,30]
[402009255,1768456323708,-694.19,0.00042465,30]
[402009256,1768456323727,-573.6,0.00042465,30]
[402009257,1768456323748,-500.0,0.00042465,30]
[402009258,1768456323768,-1448.11,0.00042465,30]
[402009259,1768456323788,-500.0,0.00042465,30]
[402009260,1768456323803,-500.0,0.00042465,30]
[402009261,1768456323824,-1173.28,0.00042465,30]
[402009262,1768456323836,-500.0,0.00042465,30]
[402009263,1768456323854,-500.0,0.00042465,30]
[402009264,1768456323868,-1760.05,0.00042465,30]
[402009265,1768456323883,-1093.35,0.00042465,30]
[402009266,1768456323899,-500.0,0.00042465,30]
[402009267,1768456323917,-500.0,0.00042465,30]
[402009268,1768456323932,-500.0,0.00042465,30]
[402009269,1768456323948,-1138.35,0.00042465,30]
[402009270,1768456323964,-2167.36,0.00042465,30]
[402009271,1768456323980,-500.0,0.00042465,30]
[402009272,1768456323995,-1025.05,0.00042465,30]
[402009273,1768456324010,-500.0,0.00042465,30]
[402009274,1768456324026,-580.17,0.00042465,30]
[402009275,1768456324043,-500.0,0.00042465,30]
[402009276,1768456324062,-500.0,0.00042465,30]
[402009277,1768456324078,-723.77,0.00042465,30]
[402009278,1768456324094,-893.87,0.00042465,30]
[402009279,1768456324109,-590.63,0.00042465,30]
[402009280,1768456324126,-500.0,0.00042465,30]
[402009281,1768456324141,-500.0,0.00042465,30]
[402009282,1768456324157,-529.54,0.00042465,30]
[402009283,1768456324176,-1383.42,0.00042465,30]
[402009284,1768456324192,-500.0,0.00042465,30]
[402009285,1768456324208,-922.96,0.00042465,30]
[402009286,1768456324223,-500.0,0.00042465,30]
[402009287,1768456324239,-1406.87,0.00042465,30]
[402009288,1768456324254,-500.0,0.00042465,30]
[402009289,1768456324270,-500.0,0.00042465,30]
[402009290,1768456324286,-500.0,0.00042465,30]
[402009291,1768456324301,-1124.85,0.00042465,30]
[402009292,1768456324316,-614.03,0.00042465,30]
[402009293,1768456324332,-850.47,0.00042465,30]
[402009294,1768456324347,-840.82,0.00042465,30]
[402009295,1768456324363,-500.0,0.00042465,30]
[402009296,1768456324379,-795.79,0.00042465,30]
[402009297,1768456324394,-500.0,0.00042465,30]
[402009298,1768456324408,-1197.5,0.00042465,30]
[402009299,1768456324424,-500.0,0.00042465,30]
[402009300,1768456324441,-1879.94,0.00042465,30]
[402009301,1768456324456,-1126.11,0.00042465,30]
[402009302,1768456324472,-500.0,0.00042465,30]
[402009303,1768456324489,-1378.85,0.00042465,30]
[402009304,1768456324504,-630.98,0.00042465,30]
[402009305,1768456324520,-1239.97,0.00042465,30]